[Event "Titled Tuesday Blitz December 06 Early 2022"]
[White "Gjestemoen-VonHirsch, Andre"]
[Black "Korchmar, Vasiliy"]
[WhiteFideId "1539531"]
[BlackFideId "24131750"]
[WhiteElo "2198"]
[BlackElo "2370"]
[Result "0-1"]
[Round "01"]
[TimeControl "180+1"]
[Date "2022.12.07"]
[WhiteClock "0:00:03"]
[BlackClock "0:00:57"]

1. b3 {[%clk 0:02:53]}  d5 {[%clk 0:02:45]} 2. Bb2 {[%clk 0:00:54]}  Bg4 {[%clk 0:02:42]} 3. Nf3 {[%clk 0:00:53]}  Nf6 {[%clk 0:02:39]} 4. e3 {[%clk 0:00:50]}  e6 {[%clk 0:02:38]} 5. Be2 {[%clk 0:00:50]}  Bd6 {[%clk 0:02:38]} 6. h3 {[%clk 0:00:50]}  Bh5 {[%clk 0:02:38]} 7. c4 {[%clk 0:00:49]}  O-O {[%clk 0:02:37]} 8. Nc3 {[%clk 0:00:48]}  c5 {[%clk 0:02:37]} 9. cxd5 {[%clk 0:00:47]}  exd5 {[%clk 0:02:37]} 10. d4 {[%clk 0:00:47]}  Bxf3 {[%clk 0:02:34]} 11. Bxf3 {[%clk 0:00:48]}  cxd4 {[%clk 0:02:35]} 12. Qxd4 {[%clk 0:00:48]}  Nc6 {[%clk 0:02:35]} 13. Qd2 {[%clk 0:00:47]}  d4 {[%clk 0:02:34]} 14. exd4 {[%clk 0:00:44]}  Re8+ {[%clk 0:02:34]} 15. Ne2 {[%clk 0:00:18]}  Bb4 {[%clk 0:02:26]} 16. Bc3 {[%clk 0:00:17]}  Bxc3 {[%clk 0:02:26]} 17. Qxc3 {[%clk 0:00:18]}  Nxd4 {[%clk 0:02:27]} 18. Rd1 {[%clk 0:00:18]}  Nxf3+ {[%clk 0:02:03]} 19. Qxf3 {[%clk 0:00:19]}  Qa5+ {[%clk 0:02:03]} 20. Kf1 {[%clk 0:00:15]}  Qxa2 {[%clk 0:02:03]} 21. g3 {[%clk 0:00:14]}  Qa6 {[%clk 0:01:30]} 22. Re1 {[%clk 0:00:12]}  Ne4 {[%clk 0:01:26]} 23. Kg2 {[%clk 0:00:12]}  Nd2 {[%clk 0:01:26]} 24. Qg4 {[%clk 0:00:11]}  Qc6+ {[%clk 0:01:13]} 25. f3 {[%clk 0:00:09]}  Re3 {[%clk 0:01:13]} 26. Nf4 {[%clk 0:00:08]}  Rxe1 {[%clk 0:01:06]} 27. Rxe1 {[%clk 0:00:09]}  Nxb3 {[%clk 0:01:03]} 28. Re2 {[%clk 0:00:06]}  a5 {[%clk 0:00:57]} 29. Nh5 {[%clk 0:00:03]}  Qg6 {[%clk 0:00:57]} 0-1


[Site "https://www.chess.com"]

[Event "Titled Tuesday Blitz December 06 Early 2022"]
[White "Gong, Qianyun"]
[Black "Bryan, Jarod"]
[WhiteFideId "8602425"]
[BlackFideId "2009617"]
[WhiteElo "2199"]
[BlackElo "2097"]
[Result "1-0"]
[Round "01"]
[TimeControl "180+1"]
[Date "2022.12.07"]
[WhiteClock "0:01:24"]
[BlackClock "0:00:09"]

1. e4 {[%clk 0:02:45]}  Nc6 {[%clk 0:00:31]} 2. d4 {[%clk 0:02:33]}  e5 {[%clk 0:00:30]} 3. d5 {[%clk 0:02:33]}  Nce7 {[%clk 0:00:30]} 4. Nc3 {[%clk 0:02:34]}  Ng6 {[%clk 0:00:30]} 5. h4 {[%clk 0:02:33]}  h5 {[%clk 0:00:27]} 6. Be2 {[%clk 0:02:31]}  Bc5 {[%clk 0:00:23]} 7. Bxh5 {[%clk 0:02:28]}  Qf6 {[%clk 0:00:16]} 8. Bf3 {[%clk 0:01:55]}  Nxh4 {[%clk 0:00:14]} 9. Rh3 {[%clk 0:01:29]}  d6 {[%clk 0:00:13]} 10. Rg3 {[%clk 0:01:30]}  Ng6 {[%clk 0:00:12]} 11. Bg5 {[%clk 0:01:29]}  Rh1 {[%clk 0:00:09]} 12. Kf1 {[%clk 0:01:28]}  Bd7 {[%clk 0:00:09]} 13. Bxf6 {[%clk 0:01:28]}  Nxf6 {[%clk 0:00:09]} 14. a3 {[%clk 0:01:25]}  Nh5 {[%clk 0:00:08]} 15. Bxh5 {[%clk 0:01:24]}  Rxh5 {[%clk 0:00:09]} 16. Qxh5 {[%clk 0:01:24]} 1-0


[Site "https://www.chess.com"]

[Event "Titled Tuesday Blitz December 06 Early 2022"]
[White "Herman, Daniel"]
[Black "Ozen, Bahadir"]
[WhiteFideId "30935008"]
[BlackFideId "6337058"]
[WhiteElo "1897"]
[BlackElo "2503"]
[Result "1/2-1/2"]
[Round "01"]
[TimeControl "180+1"]
[Date "2022.12.07"]
[WhiteClock "0:00:26"]
[BlackClock "0:00:25"]

1. b3 {[%clk 0:02:56]}  d6 {[%clk 0:02:56]} 2. Bb2 {[%clk 0:02:55]}  e5 {[%clk 0:02:56]} 3. e3 {[%clk 0:02:52]}  Nf6 {[%clk 0:02:55]} 4. d4 {[%clk 0:02:52]}  Nbd7 {[%clk 0:02:53]} 5. Nf3 {[%clk 0:02:52]}  e4 {[%clk 0:02:47]} 6. Nfd2 {[%clk 0:02:52]}  d5 {[%clk 0:02:47]} 7. c4 {[%clk 0:02:52]}  c6 {[%clk 0:02:48]} 8. Qc1 {[%clk 0:02:49]}  Be7 {[%clk 0:02:30]} 9. Be2 {[%clk 0:02:41]}  h5 {[%clk 0:02:17]} 10. h3 {[%clk 0:02:39]}  h4 {[%clk 0:02:15]} 11. Ba3 {[%clk 0:02:33]}  O-O {[%clk 0:01:47]} 12. Bxe7 {[%clk 0:02:31]}  Qxe7 {[%clk 0:01:48]} 13. Nc3 {[%clk 0:02:31]}  a6 {[%clk 0:01:47]} 14. a4 {[%clk 0:02:24]}  a5 {[%clk 0:01:47]} 15. O-O {[%clk 0:02:17]}  Rd8 {[%clk 0:01:42]} 16. cxd5 {[%clk 0:02:04]}  cxd5 {[%clk 0:01:42]} 17. Nb5 {[%clk 0:02:02]}  Nb8 {[%clk 0:01:21]} 18. Qc7 {[%clk 0:01:51]}  Qxc7 {[%clk 0:01:18]} 19. Nxc7 {[%clk 0:01:52]}  Ra7 {[%clk 0:01:19]} 20. Rac1 {[%clk 0:01:46]}  Nc6 {[%clk 0:01:16]} 21. Nb5 {[%clk 0:01:35]}  Ra8 {[%clk 0:01:16]} 22. Rc5 {[%clk 0:01:35]}  Be6 {[%clk 0:01:11]} 23. Rfc1 {[%clk 0:01:34]}  Kf8 {[%clk 0:01:09]} 24. f3 {[%clk 0:01:22]}  exf3 {[%clk 0:01:09]} 25. Bxf3 {[%clk 0:01:17]}  Rac8 {[%clk 0:01:08]} 26. Nf1 {[%clk 0:01:06]}  Ke7 {[%clk 0:01:08]} 27. Nh2 {[%clk 0:01:06]}  g5 {[%clk 0:01:04]} 28. Ng4 {[%clk 0:00:55]}  Nxg4 {[%clk 0:00:57]} 29. hxg4 {[%clk 0:00:56]}  Nb4 {[%clk 0:00:53]} 30. Rc7+ {[%clk 0:00:52]}  Kf6 {[%clk 0:00:47]} 31. R1c3 {[%clk 0:00:47]}  Rxc7 {[%clk 0:00:43]} 32. Rxc7 {[%clk 0:00:46]}  Rd7 {[%clk 0:00:43]} 33. Kf2 {[%clk 0:00:34]}  Rxc7 {[%clk 0:00:32]} 34. Nxc7 {[%clk 0:00:35]}  Ke7 {[%clk 0:00:32]} 35. Ke2 {[%clk 0:00:34]}  Kd6 {[%clk 0:00:31]} 36. Nb5+ {[%clk 0:00:27]}  Ke7 {[%clk 0:00:30]} 37. Nc7 {[%clk 0:00:26]}  Kd6 {[%clk 0:00:30]} 38. Nb5+ {[%clk 0:00:26]}  Ke7 {[%clk 0:00:25]} 39. Nc7 {[%clk 0:00:26]} 1/2-1/2


[Site "https://www.chess.com"]

[Event "Titled Tuesday Blitz December 06 Early 2022"]
[White "Ibarra Jerez, Jose Carlos"]
[Black "Przybylski, Wojciech"]
[WhiteFideId "2226332"]
[BlackFideId "1117599"]
[WhiteElo "2638"]
[BlackElo "2217"]
[Result "1-0"]
[Round "01"]
[TimeControl "180+1"]
[Date "2022.12.07"]
[WhiteClock "0:00:28"]
[BlackClock "0:00:22"]

1. e4 {[%clk 0:02:52]}  e5 {[%clk 0:02:57]} 2. Nf3 {[%clk 0:02:40]}  Nc6 {[%clk 0:02:46]} 3. Bb5 {[%clk 0:02:34]}  Nf6 {[%clk 0:02:45]} 4. O-O {[%clk 0:02:30]}  Nxe4 {[%clk 0:02:45]} 5. d4 {[%clk 0:02:26]}  Nd6 {[%clk 0:02:44]} 6. dxe5 {[%clk 0:02:22]}  Nxb5 {[%clk 0:02:43]} 7. a4 {[%clk 0:02:21]}  Nbd4 {[%clk 0:02:43]} 8. Nxd4 {[%clk 0:02:18]}  d5 {[%clk 0:02:43]} 9. Nxc6 {[%clk 0:02:11]}  bxc6 {[%clk 0:02:44]} 10. Nd2 {[%clk 0:02:06]}  Be7 {[%clk 0:02:41]} 11. Nb3 {[%clk 0:02:04]}  O-O {[%clk 0:02:39]} 12. Be3 {[%clk 0:02:04]}  f6 {[%clk 0:02:35]} 13. exf6 {[%clk 0:02:02]}  Rxf6 {[%clk 0:02:28]} 14. Bg5 {[%clk 0:01:56]}  Rg6 {[%clk 0:02:24]} 15. Bxe7 {[%clk 0:01:57]}  Qxe7 {[%clk 0:02:24]} 16. Re1 {[%clk 0:01:58]}  Qg5 {[%clk 0:02:19]} 17. g3 {[%clk 0:01:48]}  Bg4 {[%clk 0:02:09]} 18. Qd2 {[%clk 0:01:42]}  Qh5 {[%clk 0:02:07]} 19. Re7 {[%clk 0:01:39]}  Bf3 {[%clk 0:01:50]} 20. Nd4 {[%clk 0:01:32]}  Be4 {[%clk 0:01:45]} 21. f3 {[%clk 0:01:29]}  Bxf3 {[%clk 0:01:21]} 22. Nxf3 {[%clk 0:01:25]}  Qxf3 {[%clk 0:01:22]} 23. Rf1 {[%clk 0:01:25]}  Qg4 {[%clk 0:01:20]} 24. Qf2 {[%clk 0:01:21]}  h5 {[%clk 0:01:18]} 25. Rxc7 {[%clk 0:01:14]}  h4 {[%clk 0:01:13]} 26. Qf7+ {[%clk 0:01:09]}  Kh7 {[%clk 0:01:12]} 27. Rf4 {[%clk 0:01:09]}  Qd1+ {[%clk 0:01:06]} 28. Kg2 {[%clk 0:01:07]}  Qxc2+ {[%clk 0:00:22]} 29. Kh3 {[%clk 0:01:06]}  Rh6 {[%clk 0:00:22]} 30. Qxg7# {[%clk 0:00:28]} 1-0


[Site "https://www.chess.com"]

[Event "Titled Tuesday Blitz December 06 Early 2022"]
[White "Ilkhomi, Jaloliddin"]
[Black "Sava, Christiansen-Danut-Eugen"]
[WhiteFideId "14700948"]
[BlackFideId "1210114"]
[WhiteElo "2045"]
[BlackElo "1904"]
[Result "1/2-1/2"]
[Round "01"]
[TimeControl "180+1"]
[Date "2022.12.07"]
[WhiteClock "0:00:31"]
[BlackClock "0:00:25"]

1. d4 {[%clk 0:02:43]}  Nf6 {[%clk 0:02:49]} 2. Nf3 {[%clk 0:02:36]}  g6 {[%clk 0:02:41]} 3. Nc3 {[%clk 0:02:30]}  d5 {[%clk 0:02:34]} 4. Bf4 {[%clk 0:02:26]}  Bg7 {[%clk 0:02:29]} 5. e3 {[%clk 0:02:21]}  O-O {[%clk 0:02:23]} 6. Be2 {[%clk 0:02:20]}  a6 {[%clk 0:02:20]} 7. O-O {[%clk 0:02:20]}  c5 {[%clk 0:02:19]} 8. Ne5 {[%clk 0:02:20]}  Nbd7 {[%clk 0:02:17]} 9. Nb1 {[%clk 0:02:17]}  Ne4 {[%clk 0:02:09]} 10. Nxd7 {[%clk 0:02:10]}  Bxd7 {[%clk 0:02:08]} 11. c3 {[%clk 0:02:10]}  Qb6 {[%clk 0:01:59]} 12. Qb3 {[%clk 0:02:10]}  Qc6 {[%clk 0:01:53]} 13. f3 {[%clk 0:02:08]}  Nd6 {[%clk 0:01:49]} 14. Nd2 {[%clk 0:02:09]}  c4 {[%clk 0:01:47]} 15. Qc2 {[%clk 0:02:08]}  b5 {[%clk 0:01:47]} 16. e4 {[%clk 0:02:08]}  a5 {[%clk 0:01:34]} 17. Rfe1 {[%clk 0:02:01]}  b4 {[%clk 0:01:30]} 18. exd5 {[%clk 0:02:00]}  Qxd5 {[%clk 0:01:30]} 19. Bxd6 {[%clk 0:02:00]}  Qxd6 {[%clk 0:01:23]} 20. Nxc4 {[%clk 0:02:00]}  Qc7 {[%clk 0:01:23]} 21. Rac1 {[%clk 0:01:54]}  Bf5 {[%clk 0:01:21]} 22. Bd3 {[%clk 0:01:53]}  Bxd3 {[%clk 0:00:46]} 23. Qxd3 {[%clk 0:01:54]}  bxc3 {[%clk 0:00:46]} 24. bxc3 {[%clk 0:01:48]}  Rfc8 {[%clk 0:00:44]} 25. Ne5 {[%clk 0:01:48]}  Qd6 {[%clk 0:00:39]} 26. f4 {[%clk 0:01:37]}  e6 {[%clk 0:00:39]} 27. c4 {[%clk 0:01:32]}  Rab8 {[%clk 0:00:37]} 28. Red1 {[%clk 0:01:25]}  Rb2 {[%clk 0:00:35]} 29. Rd2 {[%clk 0:01:25]}  Rb4 {[%clk 0:00:34]} 30. Qc3 {[%clk 0:01:20]}  Bxe5 {[%clk 0:00:28]} 31. fxe5 {[%clk 0:01:21]}  Qb6 {[%clk 0:00:26]} 32. Kh1 {[%clk 0:01:19]}  Rbxc4 {[%clk 0:00:25]} 33. Qxc4 {[%clk 0:00:49]}  Rxc4 {[%clk 0:00:26]} 34. Rcd1 {[%clk 0:00:49]}  Rb4 {[%clk 0:00:25]} 35. h3 {[%clk 0:00:48]}  Rb1 {[%clk 0:00:25]} 36. d5 {[%clk 0:00:48]}  Rxd1+ {[%clk 0:00:24]} 37. Rxd1 {[%clk 0:00:49]}  exd5 {[%clk 0:00:24]} 38. Rxd5 {[%clk 0:00:50]}  Qb1+ {[%clk 0:00:23]} 39. Kh2 {[%clk 0:00:49]}  Qxa2 {[%clk 0:00:24]} 40. Rd8+ {[%clk 0:00:49]}  Kg7 {[%clk 0:00:24]} 41. Rd6 {[%clk 0:00:49]}  Qe2 {[%clk 0:00:22]} 42. Rd5 {[%clk 0:00:47]}  a4 {[%clk 0:00:20]} 43. Ra5 {[%clk 0:00:46]}  a3 {[%clk 0:00:20]} 44. Rxa3 {[%clk 0:00:44]}  Qxe5+ {[%clk 0:00:20]} 45. Rg3 {[%clk 0:00:44]}  h5 {[%clk 0:00:20]} 46. h4 {[%clk 0:00:44]}  Qf4 {[%clk 0:00:20]} 47. Kh3 {[%clk 0:00:44]}  Kh6 {[%clk 0:00:20]} 48. Rf3 {[%clk 0:00:43]}  Qg4+ {[%clk 0:00:20]} 49. Kh2 {[%clk 0:00:44]}  f5 {[%clk 0:00:21]} 50. Rh3 {[%clk 0:00:43]}  g5 {[%clk 0:00:21]} 51. hxg5+ {[%clk 0:00:43]}  Kxg5 {[%clk 0:00:22]} 52. Rg3 {[%clk 0:00:42]}  h4 {[%clk 0:00:20]} 53. Rxg4+ {[%clk 0:00:41]}  fxg4 {[%clk 0:00:21]} 54. Kg1 {[%clk 0:00:26]}  Kf4 {[%clk 0:00:21]} 55. Kf2 {[%clk 0:00:27]}  Ke4 {[%clk 0:00:21]} 56. Ke2 {[%clk 0:00:27]}  g3 {[%clk 0:00:21]} 57. Kf1 {[%clk 0:00:26]}  Ke3 {[%clk 0:00:21]} 58. Kg1 {[%clk 0:00:26]}  Ke2 {[%clk 0:00:21]} 59. Kh1 {[%clk 0:00:25]}  Ke3 {[%clk 0:00:21]} 60. Kg1 {[%clk 0:00:25]}  Kf4 {[%clk 0:00:22]} 61. Kh1 {[%clk 0:00:25]}  Kg4 {[%clk 0:00:23]} 62. Kg1 {[%clk 0:00:26]}  h3 {[%clk 0:00:24]} 63. Kh1 {[%clk 0:00:26]}  hxg2+ {[%clk 0:00:23]} 64. Kxg2 {[%clk 0:00:27]}  Kf4 {[%clk 0:00:23]} 65. Kg1 {[%clk 0:00:28]}  Kf3 {[%clk 0:00:23]} 66. Kf1 {[%clk 0:00:28]}  Kg4 {[%clk 0:00:23]} 67. Kg2 {[%clk 0:00:29]}  Kh4 {[%clk 0:00:23]} 68. Kg1 {[%clk 0:00:29]}  Kh3 {[%clk 0:00:24]} 69. Kh1 {[%clk 0:00:30]}  Kg4 {[%clk 0:00:25]} 70. Kg2 {[%clk 0:00:31]} 1/2-1/2


[Site "https://www.chess.com"]

[Event "Titled Tuesday Blitz December 06 Early 2022"]
[White "Jobava, Baadur"]
[Black "Turzo, Attila"]
[WhiteFideId "13601520"]
[BlackFideId "704954"]
[WhiteElo "2582"]
[BlackElo "2500"]
[Result "1-0"]
[Round "01"]
[TimeControl "180+1"]
[Date "2022.12.06"]
[WhiteClock "0:00:19"]
[BlackClock "0:00:09"]

1. d4 {[%clk 0:02:45]}  Nf6 {[%clk 0:02:53]} 2. Nc3 {[%clk 0:02:45]}  d5 {[%clk 0:02:53]} 3. Bf4 {[%clk 0:02:46]}  a6 {[%clk 0:02:50]} 4. e3 {[%clk 0:02:45]}  Bf5 {[%clk 0:02:47]} 5. Bd3 {[%clk 0:02:43]}  Bg6 {[%clk 0:02:46]} 6. Nf3 {[%clk 0:02:43]}  e6 {[%clk 0:02:46]} 7. Ne5 {[%clk 0:02:43]}  c5 {[%clk 0:02:45]} 8. O-O {[%clk 0:02:38]}  Nc6 {[%clk 0:02:42]} 9. Nxc6 {[%clk 0:02:38]}  bxc6 {[%clk 0:02:42]} 10. h3 {[%clk 0:02:38]}  cxd4 {[%clk 0:02:37]} 11. exd4 {[%clk 0:02:38]}  c5 {[%clk 0:02:37]} 12. Ne2 {[%clk 0:02:33]}  Be7 {[%clk 0:02:31]} 13. dxc5 {[%clk 0:02:30]}  Bxc5 {[%clk 0:02:30]} 14. c3 {[%clk 0:02:22]}  O-O {[%clk 0:02:19]} 15. b4 {[%clk 0:02:13]}  Bd6 {[%clk 0:02:17]} 16. Re1 {[%clk 0:02:02]}  Qc7 {[%clk 0:02:15]} 17. Bxd6 {[%clk 0:02:00]}  Qxd6 {[%clk 0:02:15]} 18. a3 {[%clk 0:01:55]}  Rfc8 {[%clk 0:02:11]} 19. Rc1 {[%clk 0:01:54]}  Bxd3 {[%clk 0:02:09]} 20. Qxd3 {[%clk 0:01:55]}  Rc4 {[%clk 0:02:09]} 21. Nd4 {[%clk 0:01:47]}  Rac8 {[%clk 0:02:08]} 22. Rc2 {[%clk 0:01:23]}  Ne4 {[%clk 0:02:02]} 23. Rec1 {[%clk 0:01:20]}  Qc7 {[%clk 0:01:53]} 24. Ne2 {[%clk 0:01:17]}  Qe5 {[%clk 0:01:45]} 25. Qe3 {[%clk 0:01:17]}  Qg5 {[%clk 0:01:37]} 26. Qxg5 {[%clk 0:01:16]}  Nxg5 {[%clk 0:01:38]} 27. f3 {[%clk 0:01:14]}  h6 {[%clk 0:01:31]} 28. Kf2 {[%clk 0:01:11]}  Kf8 {[%clk 0:01:31]} 29. Rd2 {[%clk 0:01:10]}  Ke7 {[%clk 0:01:30]} 30. Re1 {[%clk 0:01:07]}  Nh7 {[%clk 0:01:27]} 31. Rd4 {[%clk 0:01:01]}  Nf6 {[%clk 0:01:25]} 32. Rxc4 {[%clk 0:01:00]}  Rxc4 {[%clk 0:01:25]} 33. Ke3 {[%clk 0:01:00]}  Kd6 {[%clk 0:01:24]} 34. Kd2 {[%clk 0:00:59]}  e5 {[%clk 0:01:23]} 35. Nc1 {[%clk 0:00:59]}  d4 {[%clk 0:01:21]} 36. cxd4 {[%clk 0:00:57]}  Rxd4+ {[%clk 0:01:21]} 37. Kc2 {[%clk 0:00:56]}  Nd5 {[%clk 0:01:21]} 38. Nb3 {[%clk 0:00:55]}  Rc4+ {[%clk 0:01:21]} 39. Kd2 {[%clk 0:00:47]}  Nf4 {[%clk 0:01:17]} 40. Rg1 {[%clk 0:00:46]}  Kd5 {[%clk 0:01:14]} 41. h4 {[%clk 0:00:46]}  Ne6 {[%clk 0:01:12]} 42. h5 {[%clk 0:00:46]}  f5 {[%clk 0:01:09]} 43. Na5 {[%clk 0:00:34]}  Rc7 {[%clk 0:01:00]} 44. Rd1 {[%clk 0:00:31]}  Nd4 {[%clk 0:00:58]} 45. Rc1 {[%clk 0:00:24]}  Rxc1 {[%clk 0:00:52]} 46. Kxc1 {[%clk 0:00:25]}  Ne2+ {[%clk 0:00:52]} 47. Kd2 {[%clk 0:00:26]}  Ng3 {[%clk 0:00:50]} 48. a4 {[%clk 0:00:24]}  Nxh5 {[%clk 0:00:49]} 49. Nb3 {[%clk 0:00:23]}  Nf6 {[%clk 0:00:45]} 50. Nc5 {[%clk 0:00:20]}  a5 {[%clk 0:00:44]} 51. Nd3 {[%clk 0:00:20]}  axb4 {[%clk 0:00:42]} 52. Nxb4+ {[%clk 0:00:20]}  Kc4 {[%clk 0:00:40]} 53. Nd3 {[%clk 0:00:20]}  Nd7 {[%clk 0:00:39]} 54. Ke3 {[%clk 0:00:18]}  Kd5 {[%clk 0:00:31]} 55. a5 {[%clk 0:00:18]}  f4+ {[%clk 0:00:27]} 56. Kd2 {[%clk 0:00:17]}  Nb8 {[%clk 0:00:23]} 57. Kc3 {[%clk 0:00:16]}  Na6 {[%clk 0:00:23]} 58. Nb4+ {[%clk 0:00:13]}  Nxb4 {[%clk 0:00:22]} 59. Kxb4 {[%clk 0:00:14]}  Kc6 {[%clk 0:00:22]} 60. a6 {[%clk 0:00:14]}  g5 {[%clk 0:00:20]} 61. Kc4 {[%clk 0:00:14]}  Kb6 {[%clk 0:00:10]} 62. Kd5 {[%clk 0:00:14]}  Kxa6 {[%clk 0:00:11]} 63. Kxe5 {[%clk 0:00:15]}  Kb5 {[%clk 0:00:11]} 64. Kf5 {[%clk 0:00:16]}  Kc4 {[%clk 0:00:12]} 65. Kg6 {[%clk 0:00:16]}  Kd3 {[%clk 0:00:09]} 66. Kxh6 {[%clk 0:00:17]}  Ke2 {[%clk 0:00:07]} 67. Kxg5 {[%clk 0:00:17]}  Kf2 {[%clk 0:00:08]} 68. Kxf4 {[%clk 0:00:18]}  Kxg2 {[%clk 0:00:09]} 69. Kg4 {[%clk 0:00:18]}  Kf2 {[%clk 0:00:09]} 70. f4 {[%clk 0:00:19]} 1-0


[Site "https://www.chess.com"]

[Event "Titled Tuesday Blitz December 06 Early 2022"]
[White "Kashtanov, Ruslan"]
[Black "Bacrot, Etienne"]
[WhiteFideId "4124871"]
[BlackFideId "605506"]
[WhiteElo "2276"]
[BlackElo "2667"]
[Result "0-1"]
[Round "01"]
[TimeControl "180+1"]
[Date "2022.12.07"]
[WhiteClock "0:00:07"]
[BlackClock "0:00:57"]

1. d4 {[%clk 0:02:46]}  Nf6 {[%clk 0:02:54]} 2. c4 {[%clk 0:02:36]}  g6 {[%clk 0:02:47]} 3. Nc3 {[%clk 0:02:28]}  d6 {[%clk 0:02:44]} 4. e4 {[%clk 0:02:19]}  Bg7 {[%clk 0:02:38]} 5. Nf3 {[%clk 0:02:09]}  O-O {[%clk 0:02:33]} 6. Be2 {[%clk 0:02:08]}  Nc6 {[%clk 0:02:29]} 7. d5 {[%clk 0:02:07]}  Nb8 {[%clk 0:02:27]} 8. Be3 {[%clk 0:02:02]}  c6 {[%clk 0:02:26]} 9. Nd2 {[%clk 0:01:49]}  Nbd7 {[%clk 0:02:23]} 10. Rc1 {[%clk 0:01:36]}  Ne5 {[%clk 0:02:22]} 11. h3 {[%clk 0:01:32]}  e6 {[%clk 0:02:20]} 12. f4 {[%clk 0:01:10]}  Ned7 {[%clk 0:02:20]} 13. dxe6 {[%clk 0:01:08]}  fxe6 {[%clk 0:02:20]} 14. O-O {[%clk 0:01:09]}  Qe7 {[%clk 0:02:18]} 15. Bf3 {[%clk 0:00:59]}  a6 {[%clk 0:02:08]} 16. b4 {[%clk 0:00:46]}  Kh8 {[%clk 0:02:08]} 17. Nb3 {[%clk 0:00:45]}  e5 {[%clk 0:02:06]} 18. f5 {[%clk 0:00:38]}  gxf5 {[%clk 0:02:06]} 19. exf5 {[%clk 0:00:39]}  e4 {[%clk 0:02:04]} 20. Be2 {[%clk 0:00:39]}  Ne5 {[%clk 0:02:03]} 21. g4 {[%clk 0:00:30]}  Bd7 {[%clk 0:01:56]} 22. Qd2 {[%clk 0:00:28]}  Rae8 {[%clk 0:01:51]} 23. Rcd1 {[%clk 0:00:23]}  Rg8 {[%clk 0:01:51]} 24. Qxd6 {[%clk 0:00:22]}  Qf7 {[%clk 0:01:51]} 25. Nc5 {[%clk 0:00:20]}  Bf8 {[%clk 0:01:49]} 26. Qc7 {[%clk 0:00:17]}  Nexg4 {[%clk 0:01:44]} 27. hxg4 {[%clk 0:00:18]}  Nxg4 {[%clk 0:01:44]} 28. Bxg4 {[%clk 0:00:17]}  Rxg4+ {[%clk 0:01:44]} 29. Kf2 {[%clk 0:00:17]}  Bxc5 {[%clk 0:01:41]} 30. Qxd7 {[%clk 0:00:13]}  Rf4+ {[%clk 0:01:24]} 31. Ke2 {[%clk 0:00:12]}  Qxd7 {[%clk 0:01:13]} 32. Rxd7 {[%clk 0:00:12]}  Bxe3 {[%clk 0:01:13]} 33. Rxf4 {[%clk 0:00:11]}  Bxf4 {[%clk 0:01:13]} 34. f6 {[%clk 0:00:12]}  e3 {[%clk 0:01:08]} 35. f7 {[%clk 0:00:12]}  Rf8 {[%clk 0:01:09]} 36. Rxb7 {[%clk 0:00:12]}  Kg7 {[%clk 0:01:07]} 37. a4 {[%clk 0:00:11]}  h5 {[%clk 0:01:06]} 38. Ne4 {[%clk 0:00:10]}  h4 {[%clk 0:01:06]} 39. Kf3 {[%clk 0:00:10]}  h3 {[%clk 0:01:05]} 40. Nd6 {[%clk 0:00:08]}  e2 {[%clk 0:00:57]} 41. Nf5+ {[%clk 0:00:07]}  Kf6 {[%clk 0:00:57]} 0-1


[Site "https://www.chess.com"]

[Event "Titled Tuesday Blitz December 06 Early 2022"]
[White "Kravtsiv, Martyn"]
[Black "Osinovsky, Stepan"]
[WhiteFideId "14113147"]
[BlackFideId "4157354"]
[WhiteElo "2695"]
[BlackElo "2222"]
[Result "1-0"]
[Round "01"]
[TimeControl "180+1"]
[Date "2022.12.07"]
[WhiteClock "0:02:13"]
[BlackClock "0:00:18"]

1. e4 {[%clk 0:02:54]}  e5 {[%clk 0:02:45]} 2. Nf3 {[%clk 0:02:43]}  Nc6 {[%clk 0:02:40]} 3. Nc3 {[%clk 0:02:28]}  Nf6 {[%clk 0:00:47]} 4. a4 {[%clk 0:02:29]}  Bb4 {[%clk 0:00:46]} 5. Bd3 {[%clk 0:02:24]}  h6 {[%clk 0:00:43]} 6. O-O {[%clk 0:02:23]}  d6 {[%clk 0:00:43]} 7. Nd5 {[%clk 0:02:22]}  Nxd5 {[%clk 0:00:42]} 8. exd5 {[%clk 0:02:21]}  Ne7 {[%clk 0:00:42]} 9. c3 {[%clk 0:02:21]}  Nxd5 {[%clk 0:00:20]} 10. cxb4 {[%clk 0:02:20]}  Nxb4 {[%clk 0:00:20]} 11. Bb1 {[%clk 0:02:15]}  O-O {[%clk 0:00:20]} 12. d4 {[%clk 0:02:14]}  Bg4 {[%clk 0:00:17]} 13. dxe5 {[%clk 0:02:13]}  Bxf3 {[%clk 0:00:18]} 14. Qxf3 {[%clk 0:02:13]}  dxe5 {[%clk 0:00:18]} 15. Qe4 {[%clk 0:02:13]}  Nc6 {[%clk 0:00:18]} 16. Qh7# {[%clk 0:02:13]} 1-0


[Site "https://www.chess.com"]

[Event "Titled Tuesday Blitz December 06 Early 2022"]
[White "Kukreja, Sankalp"]
[Black "Dardha, Daniel"]
[WhiteFideId "45027676"]
[BlackFideId "240990"]
[WhiteElo "2154"]
[BlackElo "2528"]
[Result "0-1"]
[Round "01"]
[TimeControl "180+1"]
[Date "2022.12.07"]
[WhiteClock "0:00:05"]
[BlackClock "0:01:05"]

1. e4 {[%clk 0:01:19]}  c6 {[%clk 0:02:51]} 2. d4 {[%clk 0:01:18]}  d5 {[%clk 0:02:51]} 3. exd5 {[%clk 0:01:19]}  cxd5 {[%clk 0:02:52]} 4. c4 {[%clk 0:01:19]}  Nf6 {[%clk 0:02:52]} 5. Nc3 {[%clk 0:01:18]}  Nc6 {[%clk 0:02:50]} 6. Nf3 {[%clk 0:01:17]}  e6 {[%clk 0:02:51]} 7. c5 {[%clk 0:01:17]}  Be7 {[%clk 0:02:46]} 8. Bb5 {[%clk 0:01:14]}  Bd7 {[%clk 0:02:45]} 9. Bf4 {[%clk 0:01:14]}  O-O {[%clk 0:02:44]} 10. O-O {[%clk 0:01:13]}  b6 {[%clk 0:02:45]} 11. Bxc6 {[%clk 0:01:11]}  Bxc6 {[%clk 0:02:46]} 12. Ne5 {[%clk 0:01:11]}  Qe8 {[%clk 0:02:46]} 13. b4 {[%clk 0:01:10]}  bxc5 {[%clk 0:02:46]} 14. bxc5 {[%clk 0:01:10]}  Rc8 {[%clk 0:02:36]} 15. h3 {[%clk 0:01:09]}  Nd7 {[%clk 0:02:36]} 16. Rb1 {[%clk 0:01:01]}  Nxe5 {[%clk 0:02:35]} 17. Bxe5 {[%clk 0:01:02]}  f6 {[%clk 0:02:34]} 18. Bg3 {[%clk 0:01:00]}  Qd7 {[%clk 0:02:32]} 19. Re1 {[%clk 0:01:00]}  Rfe8 {[%clk 0:02:32]} 20. Qd3 {[%clk 0:00:54]}  Bf8 {[%clk 0:02:25]} 21. Nb5 {[%clk 0:00:54]}  e5 {[%clk 0:02:19]} 22. dxe5 {[%clk 0:00:52]}  fxe5 {[%clk 0:02:20]} 23. Bxe5 {[%clk 0:00:47]}  Bxc5 {[%clk 0:02:19]} 24. Nd4 {[%clk 0:00:41]}  Rf8 {[%clk 0:02:14]} 25. Rbc1 {[%clk 0:00:39]}  Bb6 {[%clk 0:02:13]} 26. Rc2 {[%clk 0:00:31]}  Ba4 {[%clk 0:02:10]} 27. Rd2 {[%clk 0:00:29]}  Rce8 {[%clk 0:02:08]} 28. f4 {[%clk 0:00:26]}  Bb5 {[%clk 0:02:06]} 29. Qg3 {[%clk 0:00:24]}  Bc4 {[%clk 0:02:06]} 30. Kh2 {[%clk 0:00:22]}  Rf7 {[%clk 0:02:04]} 31. Nf3 {[%clk 0:00:23]}  Rfe7 {[%clk 0:01:58]} 32. Qh4 {[%clk 0:00:20]}  h6 {[%clk 0:01:56]} 33. Rc1 {[%clk 0:00:20]}  Qf5 {[%clk 0:01:54]} 34. Qg3 {[%clk 0:00:19]}  Kh7 {[%clk 0:01:46]} 35. Nh4 {[%clk 0:00:19]}  Qf7 {[%clk 0:01:41]} 36. Re1 {[%clk 0:00:19]}  Ba5 {[%clk 0:01:40]} 37. Rdd1 {[%clk 0:00:17]}  Bxe1 {[%clk 0:01:39]} 38. Rxe1 {[%clk 0:00:17]}  Bxa2 {[%clk 0:01:37]} 39. Qd3+ {[%clk 0:00:17]}  Kg8 {[%clk 0:01:27]} 40. Nf5 {[%clk 0:00:17]}  Re6 {[%clk 0:01:24]} 41. Nxg7 {[%clk 0:00:15]}  Rxe5 {[%clk 0:01:18]} 42. Rxe5 {[%clk 0:00:07]}  Rxe5 {[%clk 0:01:15]} 43. fxe5 {[%clk 0:00:08]}  Qxg7 {[%clk 0:01:10]} 44. Qa6 {[%clk 0:00:06]}  Qxe5+ {[%clk 0:01:10]} 45. Kh1 {[%clk 0:00:05]}  Bc4 {[%clk 0:01:06]} 46. Qc8+ {[%clk 0:00:05]}  Kf7 {[%clk 0:01:05]} 47. Qb7+ {[%clk 0:00:06]}  Qe7 {[%clk 0:01:05]} 48. Qb2 {[%clk 0:00:05]} 0-1


[Site "https://www.chess.com"]